fUSD/lending_fUSD_20240415
["ID","MTS","AMOUNT","RATE_DAILY","PERIOD"]
[322676788,1713210634516,-3310.72801064,0.00020742,2]
[322676791,1713210634526,-250.59,0.00020752,2]
[322676793,1713210634536,-1698.20213337,0.00020772,2]
[322676794,1713210634545,-2594.42663501,0.00020772,2]
[322676797,1713210634555,-183.85469903,0.00020789,2]
[322676799,1713210634566,-290.90623,0.0002079,2]
[322676801,1713210634576,-156.08774004,0.0002079,2]
[322676803,1713210634586,-22599.425,0.000208,2]
[322676805,1713210634596,-2394.60841215,0.000208,2]
[322676807,1713210634609,-150.10910978,0.000208,2]
[322676809,1713210634620,-175.55240214,0.000208,2]
[322676811,1713210634629,-170.66355813,0.000208,2]
[322676812,1713210634638,-318.62015041,0.000208,2]
[322676814,1713210634648,-2353.22997751,0.00020808,2]
[322676816,1713210634658,-1000.0,0.00020819,2]
[322676819,1713210634667,-10000.0,0.00020826,2]
[322676821,1713210634677,-2353.22997751,0.00020826,2]
[322676823,1713210634687,-200.0,0.00020832,2]
[322676825,1713210634697,-500.0,0.00020832,2]
[322676827,1713210634707,-1698.20213337,0.00020836,2]
[322676829,1713210634717,-2594.42663501,0.00020836,2]
[322676831,1713210634726,-2353.22997751,0.00020845,2]
[322676833,1713210634736,-400.25019898,0.00020861,2]
[322676835,1713210634746,-2353.22997751,0.00020863,2]
[322676837,1713210634756,-400.25019898,0.00020871,2]
[322676839,1713210634765,-7500.0,0.00020875,2]
[322676841,1713210634774,-400.25019898,0.00020881,2]
[322676843,1713210634784,-2353.22997751,0.00020882,2]
[322676845,1713210634794,-217.38182733,0.00020889,2]
[322676847,1713210634804,-400.25019898,0.0002089,2]
[322676849,1713210634813,-162768.09629919,0.00020899,2]
[322676863,1713210634953,-6352.8,0.00020899,2]
[322676960,1713210641601,-150.0,0.00020422,2]
[322676961,1713210641617,-150.0,0.00020422,2]
[322676962,1713210641627,-85.38170658,0.00020789,2]
[322676963,1713210641694,-98.47299245,0.00020789,2]
[322676964,1713210641704,-19679.61381608,0.00020899,2]
[322676965,1713210641791,-1212.5403344,0.00020899,2]
[322676966,1713210641840,-410.07831024,0.00020899,2]
[322676967,1713210641865,-321851.56764638,0.00020899,2]
[322676968,1713210641875,-213.0,0.000209,2]
[322676969,1713210641886,-245000.0,0.000209,2]
[322676970,1713210641897,-400.25019898,0.000209,2]
[322676971,1713210641907,-1698.20213337,0.000209,2]
[322676972,1713210641918,-2353.22997751,0.000209,2]
[322676973,1713210641928,-208.65322947,0.000209,2]
[322676974,1713210641937,-2594.42663501,0.000209,2]
[322676975,1713210641948,-5274.03857546,0.000209,2]
[322676976,1713210641958,-130538.89470355,0.000209,2]
[322676977,1713210641968,-1000.0,0.000209,2]
[322676978,1713210641978,-5507.21140862,0.000209,3]
[322676979,1713210641987,-2880.93061987,0.000209,2]
[322676980,1713210641997,-177.03479825,0.000209,2]
[322676981,1713210642006,-162.06976837,0.00020916,2]
[322676982,1713210642016,-267.45828026,0.00020917,2]
[322676983,1713210642027,-13176.17787928,0.00020917,2]
[322676984,1713210642037,-3245.01728327,0.00020917,2]
[322676985,1713210642046,-1622.50864164,0.00020919,2]
[322676986,1713210642056,-162.06976837,0.00020922,2]
[322676987,1713210642065,-627.08806672,0.00020923,2]
[322676988,1713210642075,-534.9165605,0.00020923,2]
[322676989,1713210642085,-1660.79578564,0.00020923,2]
[322676990,1713210642094,-627.08806672,0.00020924,2]
[322676991,1713210642104,-3245.01728327,0.00020924,2]
[322676992,1713210642119,-267.45828026,0.00020925,2]
[322676993,1713210642130,-267.45828026,0.00020926,2]
[322676994,1713210642139,-250.83522668,0.00020926,2]
[322676995,1713210642148,-13176.17787928,0.00020928,2]
[322676996,1713210642158,-250.83522669,0.00020928,2]
[322676997,1713210642167,-3245.01728327,0.00020929,2]
[322676998,1713210642176,-250.83522669,0.00020929,2]
[322676999,1713210642186,-1660.79578564,0.00020929,2]
[322677000,1713210642195,-1622.50864164,0.00020931,2]
[322677001,1713210642205,-830.39789281,0.00020932,2]
[322677002,1713210642215,-830.39789281,0.00020932,2]
[322677003,1713210642226,-13176.17787928,0.00020932,2]
[322677004,1713210642235,-267.45828026,0.00020932,2]
[322677005,1713210642244,-250.83522669,0.00020933,2]
[322677006,1713210642254,-830.39789281,0.00020933,2]
[322677007,1713210642263,-250.83522669,0.00020935,2]
[322677008,1713210642272,-4392.0592931,0.00020935,2]
[322677009,1713210642282,-162.06976837,0.00020937,2]
[322677010,1713210642291,-534.9165605,0.00020938,2]
[322677011,1713210642303,-4392.0592931,0.00020939,2]
[322677012,1713210642312,-250.83522669,0.00020939,2]
[322677013,1713210642322,-534.9165605,0.00020942,2]
[322677014,1713210642333,-267.45828026,0.00020942,2]
[322677015,1713210642345,-627.08806672,0.00020944,2]
[322677016,1713210642355,-534.9165605,0.00020944,2]
[322677017,1713210642375,-534.9165605,0.00020944,2]
[322677018,1713210642386,-267.45828026,0.00020945,2]
[322677019,1713210642400,-534.9165605,0.00020945,2]
[322677020,1713210642411,-267.45828026,0.00020946,2]
[322677021,1713210642422,-267.45828026,0.00020948,2]
[322677022,1713210642432,-1660.79578564,0.00020949,2]
[322677023,1713210642443,-534.9165605,0.0002095,2]
[322677024,1713210642453,-162.06976837,0.00020951,2]
[322677025,1713210642463,-267.45828026,0.00020952,2]
[322677026,1713210642472,-250.83522668,0.00020952,2]
[322677027,1713210642483,-300.0,0.00020954,2]
[322677028,1713210642494,-4392.0592931,0.00020955,2]
[322677029,1713210642504,-21960.29646547,0.00020955,2]
[322677030,1713210642513,-13176.17787928,0.00020956,2]
[322677031,1713210642523,-4392.0592931,0.00020956,2]
[322677032,1713210642533,-830.39789281,0.00020956,2]
[322677033,1713210642542,-3245.01728327,0.00020956,2]
[322677034,1713210642552,-21960.29646547,0.00020957,2]
[322677035,1713210642561,-267.45828026,0.00020957,2]
[322677036,1713210642572,-1660.79578564,0.00020958,2]
[322677037,1713210642581,-4392.0592931,0.00020958,2]
[322677038,1713210642591,-250.83522669,0.00020958,2]
[322677039,1713210642600,-162.06976837,0.00020959,2]
[322677040,1713210642614,-830.39789281,0.00020959,2]
[322677041,1713210642624,-13176.17787928,0.0002096,2]
[322677042,1713210642633,-250.83522669,0.00020961,2]
[322677044,1713210642642,-13176.17787928,0.00020961,2]
[322677047,1713210642652,-4392.0592931,0.00020963,2]
[322677050,1713210642661,-534.9165605,0.00020965,2]
[322677052,1713210642670,-13176.17787928,0.00020965,2]
[322677054,1713210642680,-3245.01728327,0.00020966,2]
[322677055,1713210642690,-830.39789281,0.00020967,2]
[322677056,1713210642700,-13176.17787928,0.00020968,2]
[322677058,1713210642710,-250.83522668,0.00020968,2]
[322677059,1713210642719,-1660.79578564,0.00020968,2]
[322677060,1713210642729,-627.08806672,0.00020968,2]
[322677061,1713210642739,-1622.50864164,0.00020969,2]
[322677062,1713210642748,-3245.01728327,0.00020969,2]
[322677063,1713210642758,-250.83522668,0.00020969,2]
[322677065,1713210642768,-21960.29646547,0.00020971,2]
[322677067,1713210642777,-267.45828026,0.00020971,2]
[322677069,1713210642787,-1622.50864164,0.00020973,2]
[322677070,1713210642797,-250.83522668,0.00020974,2]
[322677071,1713210642807,-3245.01728327,0.00020974,2]
[322677072,1713210642817,-21960.29646547,0.00020975,2]
[322677074,1713210642826,-1622.50864164,0.00020976,2]
[322677075,1713210642836,-250.83522668,0.00020976,2]
[322677076,1713210642846,-1660.79578564,0.00020976,2]
[322677077,1713210642855,-162.06976837,0.00020977,2]
[322677079,1713210642869,-1660.79578564,0.00020977,2]
[322677080,1713210642879,-627.08806672,0.00020979,2]
[322677083,1713210642889,-267.45828026,0.00020979,2]
[322677087,1713210642898,-627.08806672,0.00020979,2]
[322677090,1713210642908,-21960.29646547,0.00020979,2]
[322677093,1713210642918,-250.83522668,0.00020979,2]
[322677095,1713210642928,-267.45828026,0.0002098,2]
[322677096,1713210642937,-102269.85909409,0.0002098,2]
[322677097,1713210642947,-830.39789281,0.00020981,2]
[322677098,1713210642957,-267.45828026,0.00020982,2]
[322677099,1713210642968,-4392.0592931,0.00020982,2]
[322677100,1713210642978,-3245.01728327,0.00020983,2]
[322677101,1713210642988,-627.08806672,0.00020984,2]
[322677102,1713210642998,-1622.50864164,0.00020984,2]
[322677103,1713210643007,-21960.29646547,0.00020984,2]
[322677104,1713210643017,-250.83522668,0.00020985,2]
[322677105,1713210643027,-150.10910964,0.00020985,2]
[322677106,1713210643037,-1660.79578564,0.00020986,2]
[322677107,1713210643046,-830.39789281,0.00020986,2]
[322677108,1713210643056,-627.08806672,0.00020987,2]
[322677109,1713210643066,-162.06976837,0.00020987,2]
[322677110,1713210643076,-162.06976837,0.00020989,2]
[322677111,1713210643086,-250.83522669,0.00020989,2]
[322677112,1713210643099,-162.06976837,0.00020989,2]
[322677113,1713210643112,-13176.17787928,0.0002099,2]
[322677114,1713210643121,-267.45828026,0.0002099,2]
[322677115,1713210643131,-21960.29646547,0.00020991,2]
[322677116,1713210643141,-267.45828026,0.00020991,2]
[322677117,1713210643151,-830.39789281,0.00020992,2]
[322677118,1713210643160,-250.83522668,0.00020993,2]
[322677119,1713210643169,-267.45828026,0.00020993,2]
[322677120,1713210643179,-21960.29646547,0.00020994,2]
[322677121,1713210643189,-4392.0592931,0.00020994,2]
[322677122,1713210643198,-250.83522669,0.00020994,2]
[322677123,1713210643208,-267.45828026,0.00020995,2]
[322677124,1713210643218,-21960.29646547,0.00020996,2]
[322677125,1713210643227,-627.08806672,0.00020996,2]
[322677126,1713210643237,-1622.50864164,0.00020996,2]
[322677127,1713210643248,-534.9165605,0.00020998,2]
[322677128,1713210643258,-3245.01728327,0.00020998,2]
[322677129,1713210643268,-3080.91191322,0.00020998,2]
[322677130,1713210643277,-1269.07874739,0.00020998,2]
[322677131,1713210643287,-312.85355611,0.00020998,2]
[322677132,1713210643297,-266.93732489,0.00020998,2]
[322677133,1713210643306,-323.68508447,0.00020998,2]
[322677134,1713210643316,-342.81596001,0.00020998,2]
[322677135,1713210643325,-1758.25339069,0.00020998,2]
[322677136,1713210643335,-155.0,0.00020998,2]
[322677137,1713210643345,-4912.6722024,0.00020998,2]
[322677138,1713210643354,-879.8885076,0.00020998,2]
[322677139,1713210643366,-1160.0520314,0.00020998,2]
[322677140,1713210643376,-43572.7181041,0.00020998,2]
[322677141,1713210643387,-948.950607,0.00020998,2]
[322677142,1713210643398,-210.2380887,0.00020998,2]
[322677143,1713210643408,-245.1794448,0.00020998,2]
[322677144,1713210643417,-2581.9669933,0.00020998,2]
[322677145,1713210643427,-1106.5879231,0.00020998,2]
[322677146,1713210643437,-5915.8514842,0.00020998,2]
[322677147,1713210643446,-991.3680876,0.00020998,2]
[322677149,1713210643455,-1622.50864164,0.00020998,2]
[322677152,1713210643465,-1073.06592364,0.00020999,2]
[322677153,1713210643474,-5836.6670907,0.00020999,2]
[322677154,1713210643486,-38258.16779892,0.00020999,2]
[322677155,1713210643496,-150.0,0.00020999,2]
[322677157,1713210643506,-12147.44589705,0.00020999,2]
[322677158,1713210643516,-206.9318143,0.00020999,2]
[322677159,1713210643525,-500.0,0.00020999,2]
[322677160,1713210643535,-500.0,0.00020999,2]
[322677161,1713210643545,-500.0,0.00020999,2]
[322677162,1713210643554,-500.0,0.00020999,2]
[322677163,1713210643564,-500.0,0.00020999,2]
[322677164,1713210643574,-500.0,0.00020999,2]
[322677165,1713210643584,-189.98189383,0.00020999,2]
[322677166,1713210643594,-269.85910893,0.00020999,2]
[322677167,1713210643603,-500.0,0.00020999,2]
[322677168,1713210643616,-500.0,0.00020999,2]
[322677169,1713210643626,-500.0,0.00020999,2]
[322677170,1713210643636,-500.0,0.00020999,2]
[322677171,1713210643645,-500.0,0.00020999,2]
[322677172,1713210643655,-500.0,0.00020999,2]
[322677173,1713210643664,-4392.0592931,0.00021,2]
[322677174,1713210643675,-1622.50864164,0.00021,2]
[322677175,1713210643686,-534684.93068342,0.00021,7]
[322677176,1713210643696,-402.65904851,0.00021,2]
[322677177,1713210643706,-1660.79578564,0.00021,2]
[322677178,1713210643717,-1876165.08406832,0.00021,2]
[322677179,1713210643727,-1157479.57514183,0.00021,2]
[322677180,1713210643737,-1000.0,0.00021,2]
[322677181,1713210643747,-500.0,0.00021,2]
[322677182,1713210643758,-1025974.28187612,0.00021,2]
[322677183,1713210643768,-715.62335084,0.00021,2]
[322677184,1713210643779,-1096361.71391074,0.00021,2]
[322677185,1713210643789,-1150590.25372331,0.00021,2]
[322677186,1713210643804,-412834.48232825,0.00021,2]
[322677187,1713210643815,-1624.20869898,0.00021,2]
[322677188,1713210645037,-774.1338722,0.00021,2]
[322677189,1713210645049,-1597.61999958,0.00021,2]
[322677190,1713210645062,-1711.68207407,0.00021,2]
[322677191,1713210645073,-5026.07220816,0.00021,2]
[322677192,1713210645085,-953.56826015,0.00021,2]
[322677193,1713210645098,-144825.16484265,0.00021,2]
[322677194,1713210645112,-373.832081,0.00021,2]
[322677195,1713210645124,-1133.07,0.00021,2]
[322677196,1713210645137,-611765.70941844,0.00021,2]
[322677197,1713210645149,-1889.5215,0.00021,2]
[322677198,1713210645162,-1578.71698897,0.00021,2]
[322677400,1713210648287,-1460.40390494,0.00021,2]
[322677439,1713210648644,-3675.60229875,0.00021,2]
[322677441,1713210648656,-31829.65382358,0.00021,2]
[322677465,1713210651712,-257.34124278,0.00020898,2]
[322677466,1713210651722,-1784.28591569,0.00021,2]
[322677467,1713210651735,-332.7221297,0.00021,2]
[322677468,1713210651804,-317359.0223845,0.00021,2]
[322677469,1713210651847,-6338.08187044,0.00021,2]
[322677470,1713210651878,-2314.76,0.00021,2]
[322677471,1713210651890,-6356.61762202,0.00021,2]
[322677472,1713210751486,167.85288382,0.00015,2]
[322677473,1713210751510,32.39151254,0.00015,2]
[322677484,1713211192264,7492.75555541,0.00015,2]
[322677485,1713211210270,4907.58028916,0.00015,2]
[322677488,1713211398227,150.0,0.00017677,2]
[322677492,1713211500235,170.76,0.00028023,120]
[322677493,1713211561086,340.98,0.00016803,2]
[322677794,1713211832126,-155.0,0.00017808,2]
[322677795,1713211832137,-101.90979463,0.00017809,2]
[322677796,1713211832149,-59.41858487,0.00017809,2]
[322677797,1713211832159,-523.40353013,0.00017809,2]
[322677798,1713211832169,-125.62945851,0.00017809,2]
[322677799,1713211832182,-29.37054149,0.00017809,2]
[322677800,1713211832191,-150.0,0.00017835,2]
[322677801,1713211832200,-114.06758724,0.0001795,2]
[322677802,1713211832244,-35.93241276,0.0001795,2]
[322677803,1713211832254,-1104.75373635,0.00018,2]
[322677804,1713211832264,-150.0,0.00018027,2]
[322677805,1713211832273,-150.0,0.0001821,2]
[322677806,1713211832282,-36.25850151,0.00018515,2]
[322677807,1713211832351,-553.95149849,0.00018515,2]
[322677808,1713211832361,-1000.0,0.00018594,2]
[322677809,1713211832370,-150.0,0.00018663,2]
[322677810,1713211832379,-229.26229201,0.00018663,2]
[322677815,1713211832550,-270.72770799,0.00018663,2]
[322677816,1713211832560,-2462.51,0.00018663,2]
[322677817,1713211832570,-170.76,0.00018682,2]
[322677818,1713211832581,-150.0,0.00018912,2]
[322677819,1713211832591,-1109.70229201,0.00019,3]
[322677820,1713211832621,-440.29770799,0.00019,3]
[322677821,1713211832632,-340.98,0.00019067,2]
[322677822,1713211832642,-150.0,0.00019118,2]
[322677823,1713211832651,-539.0,0.00019178,2]
[322677824,1713211832661,-150.0,0.00019188,2]
[322677825,1713211832671,-150.0,0.00019306,2]
[322677826,1713211832681,-1413.95901201,0.00019427,2]
[322677827,1713211832745,-86.04098799,0.00019427,2]
[322677828,1713211832755,-667.65188177,0.0001944,2]
[322677829,1713211832766,-150.0,0.00019722,2]
[322677830,1713211832777,-1000.0,0.00019726,2]
[322677831,1713211832787,-150.0,0.0001982,2]
[322677832,1713211832797,-200.24439636,0.00019831,2]
[322677833,1713211832806,-483.00130938,0.00019832,2]
[322677834,1713211832816,-580.698,0.00019833,2]
[322677835,1713211832825,-150.0,0.00019833,2]
[322677836,1713211832835,-1228.0,0.00019833,2]
[322677837,1713211832844,-541.0,0.00019833,2]
[322677838,1713211832853,-619.8709877,0.00019833,2]
[322677862,1713211838221,-633.1290123,0.00019833,2]
[322677863,1713211838231,-24.63358424,0.00019833,2]
[322677864,1713211838243,-255.36641576,0.00019833,2]
[322677865,1713211838253,-610.36698522,0.00019833,2]
[322677866,1713211838345,-195.63301478,0.00019833,2]
[322677867,1713211838355,-1949.0,0.00019833,2]
[322677868,1713211838364,-608.0,0.00019833,2]
[322677869,1713211838373,-436.0,0.00019833,2]
[322677870,1713211838382,-150.0,0.00019833,2]
[322677871,1713211838391,-880.77655578,0.00019833,2]
[322677875,1713211838508,-591.22344422,0.00019833,2]
[322677877,1713211838518,-3077.0,0.00019833,2]
[322677878,1713211838527,-2439.0,0.00019833,2]
[322677879,1713211838536,-399.0,0.00019833,2]
[322677880,1713211838545,-214.0,0.00019833,2]
[322677881,1713211838554,-1638.0,0.00019833,2]
[322677882,1713211838563,-443.0,0.00019833,2]
[322677883,1713211838572,-355.0,0.00019833,2]
[322677884,1713211838580,-1500.0,0.0001985,2]
[322677885,1713211838596,-150.0,0.00019891,2]
[322677886,1713211838609,-150.0,0.00019911,2]
[322677887,1713211838618,-150.0,0.00019915,2]
[322677888,1713211838631,-1235.48690533,0.00019956,2]
[322677889,1713211838976,-827.20691672,0.00019956,2]
[322677890,1713211839000,-318.6201504,0.00019956,2]
[322677891,1713211839009,-500.0,0.0002,2]
[322677892,1713211839018,-500.0,0.0002,2]
[322677893,1713211839027,-500.0,0.0002,2]
[322677894,1713211839036,-509.77,0.0002,2]
[322677895,1713211839046,-166.25,0.0002,2]
[322677896,1713211839055,-500.0,0.0002,2]
[322677897,1713211839064,-151.34,0.0002,2]
[322677898,1713211839074,-500.0,0.0002,2]
[322677899,1713211839083,-500.0,0.0002,2]
[322677900,1713211839092,-575.09,0.0002,2]
[322677901,1713211839102,-500.0,0.0002,2]
[322677902,1713211839111,-348.66,0.0002,2]
[322677903,1713211839120,-500.0,0.0002,2]
[322677904,1713211839129,-375.07345743,0.0002,4]
[322677905,1713211839139,-500.0,0.0002,2]
[322677906,1713211839148,-603.19,0.0002,2]
[322677907,1713211839158,-150.0,0.0002,2]
[322677908,1713211839167,-523701.0,0.0002,2]
[322677909,1713211839176,-150.0,0.00020056,2]
[322677910,1713211839185,-1235.4869053,0.00020061,2]
[322677911,1713211839195,-827.20691664,0.00020061,2]
[322677912,1713211839204,-150.0,0.00020088,2]
[322677913,1713211839213,-5885.0,0.00020101,2]
[322677914,1713211839222,-5721.0,0.00020101,2]
[322677915,1713211839232,-37635.0,0.00020101,2]
[322677916,1713211839241,-1737.0,0.00020101,2]
[322677917,1713211839250,-1054.0,0.00020101,2]
[322677918,1713211839259,-1235.4869053,0.00020166,2]
[322677919,1713211839269,-827.20691664,0.00020166,2]
[322677920,1713211839278,-100000.0,0.00020222,2]
[322677921,1713211839288,-424.9437,0.00020222,2]
[322677922,1713211839297,-285.5966,0.00020222,2]
[322677923,1713211839306,-173.02822023,0.0002023,2]
[322677924,1713211839315,-504.0,0.00020246,2]
[322677925,1713211839324,-150.0,0.00020266,2]
[322677926,1713211839333,-1235.4869053,0.00020271,2]
[322677927,1713211839342,-827.20691664,0.00020271,2]
[322677928,1713211839351,-210.46523158,0.00020271,2]
[322677929,1713211839360,-539.0,0.00020274,2]
[322677930,1713211839369,-150.0,0.00020284,2]
[322677931,1713211839378,-1000.0,0.000203,2]
[322677932,1713211839387,-1000.0,0.000203,2]
[322677933,1713211839396,-1000.0,0.000203,2]
[322677934,1713211839406,-1000.0,0.000203,2]
[322677935,1713211839414,-1000.0,0.000203,2]
[322677936,1713211839423,-1000.0,0.000203,2]
[322677937,1713211839433,-1003.0,0.000203,2]
[322677938,1713211839442,-150.0,0.00020304,2]
[322677939,1713211839451,-172.9319607,0.0002032,2]
[322677940,1713211839461,-323.68508447,0.0002032,2]
[322677941,1713211839469,-155.0,0.0002032,2]
[322677942,1713211839479,-374.23095739,0.0002032,2]
[322677943,1713211839488,-858.72191135,0.0002032,2]
[322677944,1713211839497,-155.0,0.0002032,2]
[322677945,1713211839508,-3529.32909372,0.0002032,2]
[322677946,1713211839517,-365.23644351,0.0002032,2]
[322677947,1713211839526,-355.28537371,0.0002032,2]
[322677948,1713211839535,-8882.80524631,0.0002032,2]
[322677949,1713211839545,-155.0,0.0002032,2]
[322677950,1713211839554,-87772.98984035,0.0002032,2]
[322677951,1713211839563,-500.0,0.00020321,2]
[322677952,1713211839572,-1269.07874739,0.00020321,2]
[322677953,1713211839582,-1758.25339069,0.00020321,2]
[322677954,1713211839591,-294.15374725,0.00020322,2]
[322677955,1713211839600,-245000.0,0.00020322,2]
[322677956,1713211839609,-150.0,0.0002033,2]
[322677957,1713211839618,-1111.2,0.00020337,2]
[322677958,1713211839627,-408.21,0.00020337,2]
[322677959,1713211839636,-1500.0,0.00020348,2]
[322677960,1713211839645,-210.46523158,0.00020361,2]
[322677961,1713211839655,-1235.4869053,0.00020376,2]
[322677962,1713211839663,-827.20691664,0.00020376,2]
[322677963,1713211839672,-294.15374718,0.00020405,2]
[322677964,1713211839682,-151.738,0.00020422,2]
[322677965,1713211839690,-150.0,0.00020422,2]
[322677966,1713211839700,-2292.0,0.00020422,2]
[322677967,1713211839709,-968.0,0.00020422,2]
[322677968,1713211839718,-1391.0,0.00020422,2]
[322677969,1713211839727,-210.46523158,0.00020451,2]
[322677970,1713211839738,-1235.4869053,0.0002048,2]
[322677971,1713211839751,-827.20691664,0.0002048,2]
[322677972,1713211839762,-294.15374718,0.00020487,2]
[322677973,1713211839772,-1000.0,0.000205,2]
[322677974,1713211839782,-1061.0,0.000205,2]
[322677975,1713211839793,-693.0,0.000205,2]
[322677976,1713211839803,-1000.0,0.000205,2]
[322677977,1713211839813,-150.0,0.000205,2]
[322677978,1713211839826,-210.46523158,0.00020541,2]
[322677979,1713211839837,-1500.0,0.00020543,2]
[322677980,1713211839846,-1500.0,0.00020557,2]
[322677981,1713211839855,-294.15374718,0.0002057,2]
[322677982,1713211839864,-181.9,0.00020572,2]
[322677983,1713211839873,-1235.4869053,0.00020585,2]
[322677984,1713211839881,-827.20691664,0.00020585,2]
[322677985,1713211839890,-1000.0,0.000206,2]
[322677986,1713211839897,-150.0,0.00020608,2]
[322677987,1713211839906,-210.46523158,0.0002063,2]
[322677988,1713211839915,-294.15374718,0.00020652,2]
[322677989,1713211839923,-1235.4869053,0.0002069,2]
[322677991,1713211839934,-827.20691664,0.0002069,2]
[322677992,1713211839943,-1000.0,0.000207,2]
[322677993,1713211839952,-1000.0,0.000207,2]
[322677994,1713211839961,-150.0,0.000207,2]
[322677995,1713211839970,-222.0,0.000207,2]
[322677996,1713211839978,-150.0,0.00020715,2]
[322677997,1713211839987,-150.0,0.00020715,2]
[322677998,1713211839996,-150.0,0.00020718,2]
[322677999,1713211840010,-210.46523158,0.0002072,2]
[322678000,1713211840019,-150.0,0.00020727,2]
[322678001,1713211840028,-150.0,0.00020727,2]
[322678002,1713211840037,-150.0,0.0002073,2]
[322678003,1713211840046,-150.0,0.00020731,2]
[322678004,1713211840055,-294.15374718,0.00020735,2]
[322678005,1713211840064,-150.0,0.00020735,2]
[322678006,1713211840073,-1420.88151684,0.00020737,2]
[322678007,1713211840082,-150.0,0.00020738,2]
[322678008,1713211840091,-150.0,0.0002074,2]
[322678009,1713211840100,-150.0,0.00020743,2]
[322678010,1713211840109,-150.0,0.00020748,2]
[322678011,1713211840118,-150.0,0.0002075,2]
[322678012,1713211840128,-150.0,0.00020755,2]
[322678013,1713211840137,-150.0,0.00020756,2]
[322678014,1713211840146,-150.0,0.00020758,2]
[322678015,1713211840155,-150.0,0.0002076,2]
[322678016,1713211840164,-150.0,0.00020762,2]
[322678017,1713211840173,-150.0,0.00020763,2]
[322678018,1713211840181,-150.0,0.00020764,2]
[322678019,1713211840190,-150.0,0.00020781,2]
[322678020,1713211840199,-150.0,0.00020781,2]
[322678021,1713211840208,-150.0,0.00020786,2]
[322678022,1713211840217,-150.0,0.00020788,2]
[322678023,1713211840226,-150.0,0.00020789,2]
[322678024,1713211840235,-183.85469904,0.0002079,2]
[322678025,1713211840244,-150.0,0.00020791,2]
[322678026,1713211840255,-150.0,0.00020792,2]
[322678027,1713211840264,-150.0,0.00020793,2]
[322678028,1713211840273,-1235.4869053,0.00020795,2]
[322678029,1713211840282,-213.0,0.00020799,2]
[322678030,1713211840291,-1000.0,0.000208,2]
[322678031,1713211840301,-1000.0,0.000208,2]
[322678032,1713211840311,-351.0,0.000208,2]
[322678033,1713211840320,-1000.0,0.000208,2]
[322678034,1713211840331,-300.0,0.00020802,2]
[322678035,1713211840341,-150.0,0.00020804,2]
[322678036,1713211840351,-150.0,0.00020805,2]
[322678037,1713211840361,-150.0,0.00020807,2]
[322678038,1713211840371,-210.46523158,0.0002081,2]
[322678039,1713211840381,-150.0,0.00020811,2]
[322678040,1713211840391,-150.0,0.00020813,2]
[322678041,1713211840400,-150.0,0.00020814,2]
[322678042,1713211840410,-294.15374718,0.00020817,2]
[322678043,1713211840419,-150.0,0.00020821,2]
[322678044,1713211840429,-150.0,0.00020821,2]
[322678045,1713211840438,-3088.33468496,0.00020821,2]
[322678046,1713211840447,-165.374489,0.00020822,2]
[322678047,1713211840456,-150.0,0.00020824,2]
[322678048,1713211840465,-150.0,0.0002083,2]
[322678049,1713211840474,-1000.0,0.00020832,2]
[322678050,1713211840483,-200.0,0.00020832,2]
[322678051,1713211840492,-150.0,0.00020835,2]
[322678052,1713211840504,-2195.05771111,0.0002084,2]
[322678053,1713211840513,-150.0,0.00020841,2]
[322678054,1713211840523,-2195.05771106,0.00020845,2]
[322678055,1713211840532,-7500.0,0.00020847,2]
[322678056,1713211840541,-150.0,0.00020849,2]
[322678058,1713211840550,-2195.05771106,0.00020851,2]
[322678060,1713211840559,-2195.05771106,0.00020856,2]
[322678061,1713211840568,-150.0,0.00020861,2]
[322678062,1713211840577,-2195.05771106,0.00020862,2]
[322678063,1713211840586,-150.0,0.00020862,2]
[322678064,1713211840596,-150.0,0.00020863,2]
[322678065,1713211840604,-150.0,0.00020867,2]
[322678066,1713211840614,-2195.05771106,0.00020867,2]